fUST/lending_fUST_20250924
["ID","MTS","AMOUNT","RATE_DAILY","PERIOD"]
[387322994,1758693042640,-480.0,0.00020444,2]
[387322996,1758693042650,-486.34943587,0.00020444,2]
[387322998,1758693042659,-480.0,0.00020444,2]
[387323000,1758693042668,-480.0,0.00020444,2]
[387323002,1758693042677,-485.3763402,0.00020444,2]
[387323003,1758693042686,-485.11470888,0.00020444,2]
[387323006,1758693042696,-480.0,0.00020444,2]
[387323008,1758693042705,-921.67,0.00020446,2]
[387323009,1758693042715,-480.0,0.00020446,2]
[387323011,1758693042725,-480.0,0.00020446,2]
[387323014,1758693042734,-419.39004753,0.00020446,2]
[387323016,1758693042747,-480.0,0.00020446,2]
[387323018,1758693042756,-480.0,0.00020446,2]
[387323020,1758693042765,-492.03589715,0.00020446,2]
[387323022,1758693042775,-480.0,0.00020446,2]
[387323024,1758693042784,-480.0,0.00020446,2]
[387323026,1758693042794,-500.18,0.00020446,2]
[387323028,1758693042803,-480.0,0.00020446,2]
[387323030,1758693042812,-480.0,0.00020446,2]
[387323032,1758693042822,-480.0,0.00020446,2]
[387323034,1758693042832,-480.0,0.00020446,2]
[387323036,1758693042842,-541.56,0.00020446,2]
[387323038,1758693042851,-480.0,0.00020446,2]
[387323040,1758693042860,-480.0,0.00020447,2]
[387323042,1758693042869,-480.0,0.00020447,2]
[387323044,1758693042878,-480.0,0.00020447,2]
[387323046,1758693042887,-480.0,0.00020447,2]
[387323048,1758693042896,-480.0,0.00020447,2]
[387323050,1758693042906,-480.0,0.00020447,2]
[387323052,1758693042915,-480.0,0.00020447,2]
[387323054,1758693042925,-480.0,0.00020447,2]
[387323056,1758693042934,-480.0,0.00020447,2]
[387323058,1758693042943,-480.0,0.00020447,2]
[387323060,1758693042952,-480.0,0.00020447,2]
[387323062,1758693042963,-480.0,0.00020447,2]
[387323064,1758693042973,-347.00669212,0.00020447,2]
[387323066,1758693042982,-480.0,0.00020447,2]
[387323068,1758693042991,-836.36832101,0.00020638,2]
[387323070,1758693043001,-500.0,0.00020655,2]
[387323072,1758693043011,-500.0,0.00020655,2]
[387323074,1758693043020,-326.22345741,0.00020655,2]
[387323076,1758693043030,-500.0,0.00020655,2]
[387323077,1758693043039,-502.94326399,0.00020655,2]
[387323080,1758693043048,-500.0,0.00020655,2]
[387323082,1758693043058,-1372.32,0.00020712,3]
[387323084,1758693043067,-914.88,0.00020712,3]
[387323086,1758693043077,-457.44,0.00020712,3]
[387323088,1758693043086,-1141.23,0.00020718,2]
[387323090,1758693043095,-480.0,0.00020718,2]
[387323092,1758693043104,-921.67,0.0002072,2]
[387323094,1758693043114,-480.0,0.0002072,2]
[387323096,1758693043123,-480.0,0.0002072,2]
[387323098,1758693043132,-480.0,0.0002072,2]
[387323099,1758693043141,-480.0,0.0002072,2]
[387323101,1758693043150,-480.0,0.0002072,2]
[387323104,1758693043160,-480.0,0.0002072,2]
[387323106,1758693043169,-480.0,0.0002072,2]
[387323108,1758693043179,-480.0,0.0002072,2]
[387323110,1758693043187,-480.0,0.0002072,2]
[387323112,1758693043197,-480.0,0.00020721,2]
[387323114,1758693043206,-480.0,0.00020721,2]
[387323116,1758693043216,-480.0,0.00020721,2]
[387323118,1758693043226,-480.0,0.00020721,2]
[387323120,1758693043235,-480.0,0.00020721,2]
[387323122,1758693043244,-493.13013705,0.00020721,2]
[387323124,1758693043253,-480.0,0.00020721,2]
[387323126,1758693043262,-480.0,0.00020721,2]
[387323128,1758693043271,-480.0,0.00020721,2]
[387323130,1758693043280,-480.0,0.00020721,2]
[387323132,1758693043289,-160.0,0.0002098,2]
[387323134,1758693043299,-1141.23,0.00020992,2]
[387323136,1758693043308,-921.67,0.00020994,2]
[387323138,1758693043316,-480.0,0.00020994,2]
[387323139,1758693043325,-480.0,0.00020994,2]
[387323141,1758693043334,-480.0,0.00020994,2]
[387323143,1758693043344,-480.0,0.00020994,2]
[387323145,1758693043353,-480.0,0.00020994,2]
[387323147,1758693043362,-209.45035977,0.00020994,2]
[387323149,1758693043371,-153.919047,0.00020995,2]
[387323151,1758693043380,-178.522857,0.00020995,2]
[387323153,1758693043389,-153.07359,0.00020995,2]
[387323155,1758693043398,-480.0,0.00020995,2]
[387323157,1758693043407,-480.0,0.00020995,2]
[387323160,1758693043416,-480.0,0.00020995,2]
[387323163,1758693043426,-480.0,0.00020995,2]
[387323166,1758693043435,-480.0,0.00020995,2]
[387323169,1758693043445,-480.0,0.00020995,2]
[387323171,1758693043454,-480.0,0.00020995,2]
[387323173,1758693043463,-151.0,0.00020995,2]
[387323175,1758693043472,-480.0,0.00020995,2]
[387323177,1758693043481,-1000.0,0.00021202,2]
[387323179,1758693043490,-1141.23,0.00021266,2]
[387323181,1758693043499,-921.67,0.00021268,2]
[387323183,1758693043508,-375.79195169,0.00021268,2]
[387323185,1758693043518,-262.58,0.00021268,2]
[387323187,1758693043527,-480.0,0.00021268,2]
[387323189,1758693043537,-480.0,0.00021268,2]
[387323191,1758693043546,-480.0,0.00021269,2]
[387323193,1758693043556,-480.0,0.00021269,2]
[387323195,1758693043565,-480.0,0.00021269,2]
[387323197,1758693043575,-480.0,0.00021269,2]
[387323199,1758693043584,-480.0,0.00021269,2]
[387323201,1758693043594,-480.0,0.00021269,2]
[387323203,1758693043603,-260.0,0.00021528,2]
[387323205,1758693043613,-1141.23,0.0002154,2]
[387323207,1758693043623,-921.67,0.00021542,2]
[387323209,1758693043633,-480.0,0.00021542,2]
[387323211,1758693043643,-480.0,0.00021542,2]
[387323213,1758693043652,-480.0,0.00021543,2]
[387323215,1758693043662,-480.0,0.00021543,2]
[387323217,1758693043673,-480.0,0.00021543,2]
[387323219,1758693043682,-480.0,0.00021543,2]
[387323221,1758693043692,-480.0,0.00021543,2]
[387323223,1758693043702,-480.0,0.00021543,2]
[387323225,1758693043711,-503.53800621,0.0002175,2]
[387323227,1758693043721,-1141.23,0.00021814,2]
[387323229,1758693043731,-921.67,0.00021816,2]
[387323231,1758693043742,-480.0,0.00021816,2]
[387323233,1758693043754,-480.0,0.00021816,2]
[387323235,1758693043764,-480.0,0.00021817,2]
[387323237,1758693043773,-480.0,0.00021817,2]
[387323239,1758693043783,-480.0,0.00021817,2]
[387323241,1758693043793,-480.0,0.00021817,2]
[387323243,1758693043802,-510.34016862,0.00021817,2]
[387323245,1758693043812,-480.0,0.00021817,2]
[387323247,1758693043825,-233.62170814,0.00021914,2]
[387323249,1758693043836,-532.2324375,0.00021914,2]
[387323251,1758693043846,-151.0,0.00021918,2]
[387323253,1758693043855,-151.0,0.00021918,2]
[387323255,1758693043864,-151.0,0.00021918,2]
[387323257,1758693043874,-836.36832101,0.00022026,2]
[387323259,1758693043883,-2000.0,0.00022044,2]
[387323261,1758693043892,-2000.0,0.00022044,2]
[387323263,1758693043902,-2000.0,0.00022044,2]
[387323265,1758693043913,-2000.0,0.00022044,2]
[387323267,1758693043923,-2000.0,0.00022044,2]
[387323269,1758693043932,-1063.374,0.00022044,2]
[387323271,1758693043941,-2000.0,0.00022044,2]
[387323273,1758693043950,-2000.0,0.00022044,2]
[387323275,1758693043961,-2000.0,0.00022044,2]
[387323277,1758693043970,-360.0,0.00022076,2]
[387323279,1758693043979,-1141.23,0.00022088,2]
[387323281,1758693043989,-921.67,0.0002209,2]
[387323283,1758693043998,-480.0,0.0002209,2]
[387323285,1758693044007,-480.0,0.0002209,2]
[387323287,1758693044018,-480.0,0.00022091,2]
[387323289,1758693044027,-480.0,0.00022091,2]
[387323291,1758693044036,-480.0,0.00022091,2]
[387323293,1758693044046,-625.19,0.00022091,2]
[387323295,1758693044055,-480.0,0.00022091,2]
[387323297,1758693044065,-1115.39,0.00022153,2]
[387323299,1758693044075,-1141.23,0.00022362,2]
[387323301,1758693044084,-921.67,0.00022364,2]
[387323303,1758693044093,-480.0,0.00022364,2]
[387323304,1758693044102,-337.51,0.00022364,2]
[387323306,1758693044111,-480.0,0.00022365,2]
[387323309,1758693044121,-480.0,0.00022365,2]
[387323311,1758693044130,-480.0,0.00022365,2]
[387323312,1758693044140,-413.34,0.00022365,2]
[387323315,1758693044149,-460.0,0.00022624,2]
[387323317,1758693044158,-1141.23,0.00022636,2]
[387323319,1758693044168,-921.67,0.00022638,2]
[387323321,1758693044177,-480.0,0.00022638,2]
[387323323,1758693044186,-480.0,0.00022639,2]
[387323325,1758693044196,-480.0,0.00022639,2]
[387323327,1758693044205,-480.0,0.00022639,2]
[387323328,1758693044215,-996.47168035,0.0002268,2]
[387323330,1758693044225,-1141.23,0.0002291,2]
[387323333,1758693044234,-921.67,0.00022912,2]
[387323335,1758693044243,-480.0,0.00022912,2]
[387323336,1758693044253,-480.0,0.00022913,2]
[387323338,1758693044262,-162.23192266,0.00022913,2]
[387323341,1758693044272,-480.0,0.00022913,2]
[387323349,1758693044346,-420.0,0.00023172,2]
[387323351,1758693044372,-1141.23,0.00023184,2]
[387323352,1758693044382,-921.67,0.00023186,2]
[387323354,1758693044392,-519.43010164,0.00023186,2]
[387323357,1758693044401,-480.0,0.00023187,2]
[387323358,1758693044411,-480.0,0.00023187,2]
[387323360,1758693044420,-830.67,0.00023287,2]
[387323362,1758693044429,-836.36832101,0.00023413,2]
[387323365,1758693044439,-1141.23,0.00023458,2]
[387323367,1758693044448,-921.67,0.0002346,2]
[387323369,1758693044457,-480.0,0.00023461,2]
[387323370,1758693044467,-480.0,0.00023461,2]
[387323372,1758693044477,-505.09855213,0.00023545,2]
[387323375,1758693044486,-1141.23,0.00023732,2]
[387323377,1758693044495,-921.67,0.00023734,2]
[387323378,1758693044505,-480.0,0.00023735,2]
[387323381,1758693044515,-480.0,0.00023735,2]
[387323383,1758693044524,-1673.09,0.00023999,2]
[387323385,1758693044533,-1141.23,0.00024006,2]
[387323387,1758693044542,-921.67,0.00024008,2]
[387323389,1758693044552,-558.10948127,0.00024009,2]
[387323391,1758693044562,-480.0,0.00024009,2]
[387323393,1758693044572,-163.14852169,0.00024021,5]
[387323395,1758693044581,-1141.23,0.0002428,2]
[387323397,1758693044591,-921.67,0.00024282,2]
[387323399,1758693044600,-480.0,0.00024283,2]
[387323400,1758693044609,-151.0,0.000243,5]
[387323402,1758693044619,-915.24698009,0.00024371,2]
[387323404,1758693044629,-1141.23,0.00024554,2]
[387323406,1758693044638,-921.67,0.00024556,2]
[387323409,1758693044647,-480.0,0.00024557,2]
[387323411,1758693044656,-350.0,0.00024658,7]
[387323413,1758693044668,-350.0,0.00024658,7]
[387323415,1758693044678,-350.0,0.00024658,7]
[387323417,1758693044687,-350.0,0.00024658,7]
[387323419,1758693044696,-350.0,0.00024658,7]
[387323421,1758693044705,-350.0,0.00024658,7]
[387323423,1758693044715,-350.0,0.00024658,7]
[387323425,1758693044724,-350.0,0.00024658,7]
[387323427,1758693044733,-350.0,0.00024658,7]
[387323429,1758693044745,-350.0,0.00024658,7]
[387323431,1758693044753,-350.0,0.00024658,7]
[387323433,1758693044763,-350.0,0.00024658,7]
[387323435,1758693044772,-151.0,0.00024658,7]
[387323437,1758693044781,-151.0,0.00024658,7]
[387323439,1758693044790,-288.399121,0.00024658,7]
[387323441,1758693044799,-500.0,0.00024773,2]
[387323443,1758693044807,-500.0,0.00024773,2]
[387323445,1758693044818,-643.24831229,0.00024773,2]
[387323447,1758693044827,-457.43,0.000248,10]
[387323449,1758693044836,-175.21714761,0.000248,2]
[387323451,1758693044845,-836.36832101,0.000248,2]
[387323453,1758693044854,-73165.6070511,0.000248,2]
[387323455,1758693044863,-1141.23,0.00024828,2]
[387323457,1758693044873,-921.67,0.0002483,2]
[387323459,1758693044882,-622.59392125,0.00024831,2]
[387323461,1758693044891,-500.0,0.00024873,2]
[387323463,1758693044900,-510.80121388,0.00024873,2]
[387323465,1758693044909,-500.0,0.00024873,2]
[387323467,1758693044918,-501.9726733,0.00024873,2]
[387323469,1758693044927,-500.0,0.00024873,2]
[387323471,1758693044936,-73165.6070511,0.0002489,2]
[387323473,1758693044945,-17845.47,0.000249,2]
[387323475,1758693044955,-350.0,0.000249,7]
[387323477,1758693044964,-350.0,0.000249,7]
[387323479,1758693044973,-350.0,0.000249,7]
[387323481,1758693044983,-350.0,0.000249,7]
[387323483,1758693044992,-118986.34685077,0.000249,2]
[387323489,1758693045069,-2852.75391495,0.000249,2]
[387323490,1758693045122,-480.0,0.0001935,2]
[387323491,1758693045131,-17354.02877779,0.000249,2]
[387323492,1758693045178,-480.0,0.00019346,2]
[387323493,1758693045187,-480.0,0.00019351,2]
[387323494,1758693045197,-480.0,0.0001962,2]
[387323495,1758693045207,-480.0,0.00019625,2]
[387323496,1758693045216,-481.37519328,0.00019894,2]
[387323497,1758693045226,-480.0,0.00019899,2]
[387323498,1758693045235,-5148.61594264,0.000249,2]
[387323499,1758693045247,-265.0,0.000249,2]
[387323551,1758693045769,-480.0,0.00019348,2]
[387323553,1758693045779,-480.0,0.00019622,2]
[387323555,1758693045788,-480.0,0.00019896,2]
[387323557,1758693045798,-895.05825286,0.000199,2]
[387323559,1758693045808,-88.83087304,0.0002017,2]
[387323561,1758693045821,-158.06912696,0.0002017,2]
[387323563,1758693045830,-860.89778674,0.00020972,2]
[387327659,1758693503288,1000.0,0.00019352,20]
[387327660,1758693503550,1000.0,0.00019352,20]
[387327661,1758693503844,1000.0,0.00019352,20]
[387327662,1758693504136,1000.0,0.00019352,20]
[387327663,1758693504610,1000.0,0.00019352,20]
[387327664,1758693504875,1000.0,0.00019352,20]
[387327665,1758693505289,1000.0,0.00019352,20]
[387327666,1758693505568,1000.0,0.00019352,20]
[387327667,1758693505835,1000.0,0.00019352,20]
[387327668,1758693506136,1000.0,0.00019352,20]
[387327688,1758694044110,-198.36218011,0.00019248,2]
[387327689,1758694044132,-300.0,0.00019337,2]
[387327690,1758694044152,-540.89,0.00019338,3]
[387327691,1758694044173,-270.45,0.00019338,3]
[387327692,1758694044193,-811.37,0.00019338,3]
[387327693,1758694044214,-228.72,0.00019338,3]
[387327694,1758694044235,-686.2,0.00019338,3]
[387327695,1758694044255,-165.0,0.00019344,2]
[387327696,1758694044275,-300.0,0.00019344,2]
[387327697,1758694044296,-300.0,0.00019344,2]
[387327698,1758694044317,-480.0,0.00019344,2]
[387327699,1758694044336,-480.0,0.00019344,2]
[387327700,1758694044359,-50000.0,0.00019344,2]
[387327701,1758694044379,-500.0,0.00019345,2]
[387327702,1758694044399,-500.0,0.00019345,2]
[387327703,1758694044420,-500.0,0.00019345,2]
[387327704,1758694044441,-500.0,0.00019345,2]
[387327705,1758694044461,-327.54806505,0.00019345,2]
[387327706,1758694044481,-155.77269503,0.00019345,2]
[387327707,1758694044503,-500.0,0.00019345,2]
[387327708,1758694044523,-475.91482499,0.00019345,2]
[387327709,1758694044545,-219.54609166,0.00019345,2]
[387327710,1758694044566,-482.07592795,0.00019345,2]
[387327711,1758694044586,-480.0,0.00019345,2]
[387327712,1758694044607,-480.0,0.00019345,2]
[387327713,1758694044628,-485.47855519,0.00019345,2]
[387327714,1758694044649,-480.0,0.00019345,2]
[387327715,1758694044670,-480.0,0.00019345,2]
[387327716,1758694044692,-480.0,0.00019345,2]
[387327717,1758694044713,-483.00946592,0.00019345,2]
[387327718,1758694044734,-500.0,0.00019345,2]
[387327719,1758694044753,-500.0,0.00019345,2]
[387327720,1758694044775,-500.0,0.00019345,2]
[387327721,1758694044796,-500.0,0.00019345,2]
[387327722,1758694044816,-500.0,0.00019345,2]
[387327723,1758694044836,-500.0,0.00019345,2]
[387327724,1758694044858,-515.62522402,0.00019345,2]
[387327725,1758694044878,-500.0,0.00019345,2]
[387327726,1758694044899,-500.0,0.00019345,2]
[387327727,1758694044920,-500.0,0.00019345,2]
[387327728,1758694044942,-500.0,0.00019345,2]
[387327729,1758694044963,-500.0,0.00019345,2]
[387327730,1758694044983,-500.0,0.00019345,2]
[387327731,1758694045005,-500.0,0.00019345,2]
[387327732,1758694045026,-430.0,0.00019345,2]
[387327733,1758694045048,-158.52326323,0.00019345,2]
[387327813,1758694233063,-357.05192422,0.00019247,2]
[387327814,1758694233073,-300.0,0.00019343,2]
[387327815,1758694233084,-483.70810159,0.00019344,2]
[387327816,1758694233094,-480.0,0.00019344,2]
[387327817,1758694233104,-484.35602296,0.00019344,2]
[387327818,1758694233114,-480.36596711,0.00019344,2]
[387327819,1758694233124,-480.0,0.00019344,2]
[387327820,1758694233134,-480.0,0.00019344,2]
[387327821,1758694233143,-480.0,0.00019344,2]
[387327822,1758694233153,-481.74968714,0.00019344,2]
[387327823,1758694233163,-341.47673677,0.00019345,2]
[387327824,1758694233173,-500.0,0.00019345,2]
[387327825,1758694233183,-500.0,0.00019345,2]
[387327826,1758694233192,-500.0,0.00019345,2]
[387327827,1758694233202,-500.0,0.00019345,2]
[387327828,1758694233212,-500.0,0.00019345,2]
[387327829,1758694233222,-417.34559278,0.00019345,2]
[387327863,1758694238073,-116.38342578,0.00019344,2]
[387327865,1758694238084,-364.26657422,0.00019344,2]
[387327867,1758694238094,-237.28798869,0.00019345,2]
[387327869,1758694238103,-82.65440722,0.00019345,2]
[387327871,1758694238113,-500.0,0.00019345,2]
[387327873,1758694238122,-500.0,0.00019345,2]
[387327876,1758694238132,-500.0,0.00019345,2]
[387327877,1758694238141,-500.0,0.00019345,2]
[387327879,1758694238151,-500.0,0.00019345,2]
[387327881,1758694238160,-184.39566156,0.00019345,2]
[387327884,1758694238171,-315.60433844,0.00019345,2]
[387327886,1758694238180,-138.06809701,0.00019345,2]
[387327889,1758694238204,-361.93190299,0.00019345,2]
[387327891,1758694238213,-500.0,0.00019345,2]
[387327893,1758694238222,-500.0,0.00019345,2]
[387327895,1758694238232,-500.0,0.00019345,2]
[387327897,1758694238241,-500.0,0.00019345,2]
[387327899,1758694238250,-500.0,0.00019345,2]
[387327901,1758694238259,-500.0,0.00019345,2]
[387327903,1758694238268,-500.0,0.00019345,2]
[387327906,1758694238278,-393.78446466,0.00019345,2]
[387327908,1758694238287,-500.0,0.00019345,2]
[387327910,1758694238297,-250.63929073,0.00019345,2]
[387327912,1758694238306,-480.0,0.00019345,2]
[387327914,1758694238315,-480.0,0.00019345,2]
[387327916,1758694238325,-480.0,0.00019345,2]
[387327918,1758694238334,-480.0,0.00019345,2]
[387327920,1758694238343,-480.0,0.00019345,2]
[387327922,1758694238352,-480.0,0.00019345,2]
[387327924,1758694238361,-480.0,0.00019345,2]
[387327926,1758694238371,-488.94093068,0.00019345,2]
[387327928,1758694238380,-480.0,0.00019345,2]
[387327930,1758694238389,-480.0,0.00019345,2]
[387327932,1758694238398,-480.0,0.00019345,2]
[387327934,1758694238407,-486.37907512,0.00019345,2]
[387327936,1758694238419,-480.0,0.00019345,2]
[387327938,1758694238428,-480.0,0.00019345,2]
[387327940,1758694238438,-481.61472411,0.00019345,2]
[387327942,1758694238447,-480.0,0.00019345,2]
[387327943,1758694238456,-480.0,0.00019345,2]
[387327945,1758694238467,-480.0,0.00019345,2]
[387327948,1758694238476,-421.16478336,0.00019345,2]
[387327949,1758694238485,-623.17010627,0.00019345,2]
[387327952,1758694238496,-480.0,0.00019345,2]
[387327954,1758694238506,-480.0,0.00019345,2]
[387327956,1758694238515,-480.0,0.00019345,2]
[387327958,1758694238524,-480.0,0.00019346,2]
[387327960,1758694238535,-480.0,0.00019346,2]
[387327962,1758694238543,-480.0,0.00019346,2]
[387327964,1758694238552,-480.0,0.00019346,2]
[387327966,1758694238562,-480.0,0.00019346,2]
[387327968,1758694238571,-480.0,0.00019346,2]
[387327970,1758694238581,-484.2459263,0.00019346,2]
[387327972,1758694238590,-480.0,0.00019346,2]
[387327974,1758694238599,-480.31492493,0.00019346,2]
[387327976,1758694238608,-480.0,0.00019346,2]
[387327978,1758694238618,-480.0,0.00019346,2]
[387327980,1758694238627,-480.0,0.00019346,2]
[387327982,1758694238637,-480.65686807,0.00019346,2]
[387327984,1758694238646,-481.78885763,0.00019346,2]
[387327986,1758694238655,-480.0,0.00019346,2]
[387327988,1758694238664,-480.0,0.00019346,2]
[387327990,1758694238673,-480.0,0.00019346,2]
[387327992,1758694238683,-480.0,0.00019346,2]
[387327993,1758694238692,-480.0,0.00019346,2]
[387327996,1758694238702,-480.0,0.00019346,2]
[387327998,1758694238711,-480.0,0.00019346,2]
[387327999,1758694238720,-480.0,0.00019346,2]
[387328002,1758694238730,-480.0,0.00019346,2]
[387328003,1758694238739,-480.0,0.00019346,2]
[387328006,1758694238749,-480.0,0.00019346,2]
[387328008,1758694238758,-480.0,0.00019346,2]
[387328010,1758694238767,-484.32810229,0.00019346,2]
[387328011,1758694238776,-480.0,0.00019346,2]
[387328014,1758694238786,-481.49363379,0.00019346,2]
[387328016,1758694238795,-480.0,0.00019346,2]
[387328018,1758694238804,-480.0,0.00019346,2]
[387328020,1758694238814,-480.0,0.00019346,2]
[387328022,1758694238823,-480.0,0.00019346,2]
[387328024,1758694238832,-480.0,0.00019346,2]
[387328026,1758694238841,-480.0,0.00019346,2]
[387328028,1758694238850,-480.0,0.00019346,2]
[387328030,1758694238859,-480.0,0.00019346,2]
[387328032,1758694238869,-480.0,0.00019346,2]
[387328034,1758694238878,-480.0,0.00019346,2]
[387328035,1758694238887,-480.0,0.00019346,2]
[387328036,1758694238896,-480.0,0.00019346,2]
[387328037,1758694238905,-483.13137942,0.00019346,2]
[387328038,1758694238914,-480.0,0.00019346,2]
[387328039,1758694238923,-483.56060294,0.00019346,2]
[387328040,1758694238932,-480.0,0.00019346,2]
[387328041,1758694238942,-480.0,0.00019346,2]
[387328042,1758694238951,-480.0,0.00019346,2]
[387328043,1758694238960,-481.39195329,0.00019346,2]
[387328044,1758694238970,-480.0,0.00019346,2]
[387328045,1758694238979,-480.0,0.00019346,2]
[387328046,1758694238988,-480.0,0.00019346,2]
[387328047,1758694238997,-480.0,0.00019346,2]
[387328048,1758694239006,-480.0,0.00019346,2]
[387328049,1758694239015,-480.0,0.00019346,2]
[387328050,1758694239024,-480.0,0.00019346,2]
[387328051,1758694239033,-480.0,0.00019346,2]
[387328052,1758694239042,-216.1334439,0.00019346,2]
[387328053,1758694239051,-480.0,0.00019346,2]
[387328054,1758694239061,-480.0,0.00019346,2]
[387328055,1758694239069,-480.0,0.00019346,2]
[387328056,1758694239078,-480.0,0.00019346,2]
[387328057,1758694239087,-480.0,0.00019346,2]
[387328058,1758694239096,-503.78321287,0.00019346,2]
[387328059,1758694239105,-480.0,0.00019346,2]
[387328060,1758694239114,-480.0,0.00019346,2]
[387328061,1758694239124,-480.0,0.00019346,2]
[387328062,1758694239132,-480.0,0.00019346,2]
[387328063,1758694239142,-480.0,0.00019346,2]
[387328064,1758694239150,-480.0,0.00019346,2]
[387328065,1758694239160,-469.72542937,0.00019346,2]
[387328066,1758694239169,-480.0,0.00019346,2]
[387328068,1758694239178,-480.0,0.00019346,2]
[387328069,1758694239188,-480.0,0.00019346,2]
[387328070,1758694239196,-480.0,0.00019346,2]
[387328072,1758694239206,-480.0,0.00019346,2]
[387328074,1758694239215,-480.0,0.00019346,2]
[387328076,1758694239225,-480.0,0.00019346,2]
[387328078,1758694239235,-480.0,0.00019346,2]
[387328080,1758694239245,-480.0,0.00019346,2]
[387328082,1758694239254,-482.13993734,0.00019346,2]
[387328084,1758694239263,-480.0,0.00019346,2]
[387328086,1758694239273,-480.0,0.00019346,2]
[387328088,1758694239283,-480.0,0.00019346,2]
[387328090,1758694239292,-480.0,0.00019346,2]
[387328092,1758694239301,-480.0,0.00019346,2]
[387328094,1758694239310,-480.0,0.00019346,2]
[387328096,1758694239319,-482.04044271,0.00019346,2]
[387328098,1758694239329,-480.0,0.00019346,2]
[387328110,1758694239414,-485.50467718,0.00019346,2]
[387328113,1758694239428,-481.67055847,0.00019346,2]
[387328115,1758694239438,-480.0,0.00019346,2]
[387328117,1758694239447,-480.0,0.00019346,2]
[387328119,1758694239457,-480.0,0.00019346,2]
[387328121,1758694239466,-482.03867713,0.00019346,2]
[387328123,1758694239475,-480.0,0.00019346,2]
[387328125,1758694239485,-483.45912088,0.00019346,2]
[387328127,1758694239494,-480.0,0.00019346,2]
[387328129,1758694239503,-486.30135489,0.00019346,2]
[387328131,1758694239512,-470.10736128,0.00019346,2]
[387328133,1758694239522,-563.99,0.00019346,2]
[387328135,1758694239531,-480.0,0.00019346,2]
[387328137,1758694239541,-480.0,0.00019346,2]
[387328139,1758694239550,-500.0,0.00019346,2]
[387328141,1758694239559,-480.0,0.00019346,2]
[387328143,1758694239568,-500.0,0.00019346,2]
[387328145,1758694239577,-480.0,0.00019346,2]
[387328147,1758694239586,-480.0,0.00019346,2]
[387328149,1758694239596,-480.0,0.00019346,2]
[387328151,1758694239605,-480.0,0.00019346,2]
[387328153,1758694239615,-480.0,0.00019346,2]
[387328155,1758694239624,-482.58824215,0.00019346,2]
[387328157,1758694239634,-480.0,0.00019346,2]
[387328159,1758694239643,-480.0,0.00019346,2]
[387328161,1758694239653,-480.0,0.00019346,2]
[387328163,1758694239663,-480.0,0.00019346,2]
[387328164,1758694239672,-480.0,0.00019346,2]
[387328166,1758694239682,-480.0,0.00019346,2]
[387328168,1758694239691,-480.0,0.00019346,2]
[387328170,1758694239701,-480.0,0.00019346,2]
[387328172,1758694239710,-480.0,0.00019346,2]
[387328174,1758694239719,-480.0,0.00019346,2]
[387328176,1758694239729,-488.94407061,0.00019346,2]